{"text_format":"1","workbook":"xlsx","n_sheets":5,"sheets":["Dataset","Quotient and Product","Symbol","Paste Special","VBA Macro"],"not_rendered":{"charts":0,"images":0,"macros":1,"external_links":0,"defined_names":0,"comments":0,"pivot_tables":0},"unopened":[],"bounds":{"document_bytes":16777216,"sheet_cells":100000,"rows_first":2000,"rows_last":500,"rows_between":2000,"halvings":0,"cell_chars":16384,"cell_head_chars":4096},"cells_cut":0,"cells_raw":0,"read":"whole","date_system":"1900"}

{"sheet":"Dataset","index":0,"n_rows":15,"n_cols":4,"rows_kept":15,"cut":false,"hidden":false,"merged":[[1,1,1,3]]}
[]
[null,"Divide and Multiply in Excel One Formula"]
[]
[null,"Number 1","Number 2","Result "]
[null,10,2,{"$f":"PRODUCT(QUOTIENT(B5,C5),B5)","v":50}]
[null,100,4,{"$f":"PRODUCT(QUOTIENT(B6,C6),B6)","v":2500}]
[null,1000,5,200000]
[null,1200,6,240000]
[null,1800,8,405000]
[null,2000,10,400000]
[]
[]
[]
[]
[null,null,null,5]

{"sheet":"Quotient and Product","index":1,"n_rows":10,"n_cols":5,"rows_kept":10,"cut":false,"hidden":false,"merged":[[1,1,1,4]]}
[]
[null,"Divide and Multiply in Excel Using One Formula"]
[]
[null,"Number 1","Number 2","Result ","Formula Used"]
[null,10,2,{"$f":"PRODUCT(QUOTIENT(B5,C5),B5)","v":50},{"$f":"_xlfn.FORMULATEXT(D5)","v":"=PRODUCT(QUOTIENT(B5,C5),B5)"}]
[null,100,4,{"$f":"PRODUCT(QUOTIENT(B6,C6),B6)","v":2500},{"$f":"_xlfn.FORMULATEXT(D6)","v":"=PRODUCT(QUOTIENT(B6,C6),B6)"}]
[null,1000,5,200000,"=PRODUCT(QUOTIENT(B7,C7),B7)"]
[null,1200,6,240000,"=PRODUCT(QUOTIENT(B8,C8),B8)"]
[null,1800,8,405000,"=PRODUCT(QUOTIENT(B9,C9),B9)"]
[null,2000,10,400000,"=PRODUCT(QUOTIENT(B10,C10),B10)"]

{"sheet":"Symbol","index":2,"n_rows":10,"n_cols":5,"rows_kept":10,"cut":false,"hidden":false,"merged":[[1,1,1,4]]}
[]
[null,"Divide and Multiply in Excel Using One Formula"]
[]
[null,"Number 1","Number 2","Result ","Formula Used"]
[null,10,2,{"$f":"(B5/C5)*B5","v":50},{"$f":"_xlfn.FORMULATEXT(D5)","v":"=(B5/C5)*B5"}]
[null,100,4,{"$f":"(B6/C6)*B6","v":2500},{"$f":"_xlfn.FORMULATEXT(D6)","v":"=(B6/C6)*B6"}]
[null,1000,5,200000,"=(B7/C7)*B7"]
[null,1200,6,240000,"=(B8/C8)*B8"]
[null,1800,8,405000,"=(B9/C9)*B9"]
[null,2000,10,400000,"=(B10/C10)*B10"]

{"sheet":"Paste Special","index":3,"n_rows":10,"n_cols":5,"rows_kept":10,"cut":false,"hidden":false,"merged":[[1,1,1,4]]}
[]
[null,"Divide and Multiply in Excel Using One Formula"]
[]
[null,"Number 1","Number 2","Number 3","Result"]
[null,5,2,4,10]
[null,100,4,8,200]
[null,1000,5,16,3200]
[null,1200,6,32,6400]
[null,1800,8,64,14400]
[null,2000,10,128,25600]

{"sheet":"VBA Macro","index":4,"n_rows":10,"n_cols":6,"rows_kept":10,"cut":false,"hidden":false,"merged":[[1,1,1,5]]}
[]
[null,"Divide and Multiply in Excel Using One Formula"]
[]
[null,"Number 1","Number 2","Result ",null,"Formula Used in VBA"]
[null,10,2,{"$f":"Multiply_Division(B5,C5)","v":50},null,"=(Number_1/Number_2)*Number_1"]
[null,100,4,{"$f":"Multiply_Division(B6,C6)","v":2500}]
[null,1000,5,{"$f":"Multiply_Division(B7,C7)","v":200000}]
[null,1200,6,{"$f":"Multiply_Division(B8,C8)","v":240000}]
[null,1800,8,{"$f":"Multiply_Division(B9,C9)","v":405000}]
[null,2000,10,{"$f":"Multiply_Division(B10,C10)","v":400000}]